[Event "Late-Titled-Tuesday-Blitz-April-16-2024"]
[Site "Chess.com"]
[Date "2024.04.16"]
[Round "1"]
[White "Mackster23"]
[Black "Szachulec75"]
[Result "1-0"]
[WhiteElo "2548"]
[BlackElo "2100"]
[TimeControl "180+1"]
[EndTime "14:07:04 PDT"]
[Termination "Mackster23 won by resignation"]

1. e4 {[%clk 0:02:59.5]} 1... d6 {[%clk 0:02:59.4]} 2. d4 {[%clk 0:02:59.3]}
2... Nf6 {[%clk 0:02:59.9]} 3. Nc3 {[%clk 0:02:56.6]} 3... c6 {[%clk 0:03:00.2]}
4. Be3 {[%clk 0:02:55.3]} 4... Nbd7 {[%clk 0:02:54]} 5. f3 {[%clk 0:02:55]} 5...
e5 {[%clk 0:02:54.6]} 6. Nge2 {[%clk 0:02:54.6]} 6... Be7 {[%clk 0:02:55]} 7.
Qd2 {[%clk 0:02:54.4]} 7... O-O {[%clk 0:02:55.4]} 8. O-O-O {[%clk 0:02:54.6]}
8... b5 {[%clk 0:02:55.8]} 9. Ng3 {[%clk 0:02:24.5]} 9... Re8 {[%clk 0:02:43.1]}
10. Nf5 {[%clk 0:02:18.3]} 10... Bf8 {[%clk 0:02:39.5]} 11. dxe5 {[%clk
0:02:15]} 11... dxe5 {[%clk 0:02:38.1]} 12. g4 {[%clk 0:02:09.3]} 12... a5
{[%clk 0:02:31.3]} 13. Kb1 {[%clk 0:01:54.5]} 13... a4 {[%clk 0:02:29.7]} 14. h4
{[%clk 0:01:47.3]} 14... b4 {[%clk 0:02:28.4]} 15. Ne2 {[%clk 0:01:47.1]} 15...
b3 {[%clk 0:02:24.4]} 16. Neg3 {[%clk 0:01:40.8]} 16... a3 {[%clk 0:02:03.6]}
17. cxb3 {[%clk 0:01:36.3]} 17... axb2 {[%clk 0:02:03.1]} 18. g5 {[%clk
0:01:24.7]} 18... Nxe4 {[%clk 0:01:41.2]} 19. fxe4 {[%clk 0:01:22.7]} 19... Qc7
{[%clk 0:01:36]} 20. Qxb2 {[%clk 0:01:19.5]} 20... Nc5 {[%clk 0:01:25]} 21. Qc2
{[%clk 0:01:05.2]} 21... Ne6 {[%clk 0:01:22.3]} 22. Bc4 {[%clk 0:01:01.8]} 22...
Ba6 {[%clk 0:01:18.5]} 23. Rc1 {[%clk 0:00:46.4]} 23... Bxc4 {[%clk 0:01:13.8]}
24. Qxc4 {[%clk 0:00:47.3]} 24... Qa5 {[%clk 0:01:13.5]} 25. Rh2 {[%clk
0:00:46.4]} 25... Reb8 {[%clk 0:01:07.5]} 26. Rf2 {[%clk 0:00:33.4]} 26... Rb4
{[%clk 0:01:04.2]} 27. Qc3 {[%clk 0:00:28]} 27... Rab8 {[%clk 0:01:01.3]} 28. h5
{[%clk 0:00:21.9]} 28... Qa3 {[%clk 0:00:57.2]} 29. Qb2 {[%clk 0:00:21.1]} 29...
Qa6 {[%clk 0:00:54.6]} 30. Rc3 {[%clk 0:00:19.7]} 30... R4b7 {[%clk 0:00:32.8]}
31. Rfc2 {[%clk 0:00:19.6]} 31... Ba3 {[%clk 0:00:32.1]} 32. Rxc6 {[%clk
0:00:16.3]} 32... Qd3 {[%clk 0:00:28]} 33. Qxa3 {[%clk 0:00:15.5]} 33... Rxb3+
{[%clk 0:00:22.2]} 34. axb3 {[%clk 0:00:15.2]} 34... Rxb3+ {[%clk 0:00:22.1]}
35. Qxb3 {[%clk 0:00:15]} 35... Qxb3+ {[%clk 0:00:22.7]} 36. Rb2 {[%clk
0:00:12.5]} 36... h6 {[%clk 0:00:17.3]} 37. Rxb3 {[%clk 0:00:10.1]} 1-0

[Event "Late-Titled-Tuesday-Blitz-April-16-2024"]
[Site "Chess.com"]
[Date "2024.04.16"]
[Round "1"]
[White "Licancabur"]
[Black "Mops_2004"]
[Result "0-1"]
[WhiteElo "2443"]
[BlackElo "2809"]
[TimeControl "180+1"]
[EndTime "14:07:07 PDT"]
[Termination "Mops_2004 won on time"]

1. d4 {[%clk 0:03:00.9]} 1... g6 {[%clk 0:02:59.8]} 2. e4 {[%clk 0:02:59.6]}
2... Bg7 {[%clk 0:03:00.2]} 3. Nc3 {[%clk 0:02:57.6]} 3... d6 {[%clk 0:03:00.3]}
4. f4 {[%clk 0:02:49.6]} 4... Nf6 {[%clk 0:02:59.5]} 5. Nf3 {[%clk 0:02:49.5]}
5... c5 {[%clk 0:02:59.8]} 6. dxc5 {[%clk 0:02:45.6]} 6... Qa5 {[%clk
0:02:59.4]} 7. Qd3 {[%clk 0:02:41.6]} 7... Qxc5 {[%clk 0:02:59.2]} 8. Qb5+
{[%clk 0:02:40.5]} 8... Nbd7 {[%clk 0:02:48.5]} 9. Qxc5 {[%clk 0:02:22.3]} 9...
Nxc5 {[%clk 0:02:48.4]} 10. Bb5+ {[%clk 0:02:20.6]} 10... Bd7 {[%clk 0:02:48.3]}
11. e5 {[%clk 0:02:16.3]} 11... Nfe4 {[%clk 0:02:37.3]} 12. Bxd7+ {[%clk
0:01:48.9]} 12... Kxd7 {[%clk 0:02:37.3]} 13. Nxe4 {[%clk 0:01:47.3]} 13... Nxe4
{[%clk 0:02:37.6]} 14. Be3 {[%clk 0:01:46.4]} 14... Rhd8 {[%clk 0:01:49.7]} 15.
O-O-O {[%clk 0:01:43.4]} 15... Ke8 {[%clk 0:01:49.8]} 16. Rd4 {[%clk 0:01:22.5]}
16... f5 {[%clk 0:01:40.9]} 17. exf6 {[%clk 0:00:56]} 17... Nxf6 {[%clk
0:01:40.7]} 18. Rd3 {[%clk 0:00:44.4]} 18... b6 {[%clk 0:01:33.4]} 19. Re1
{[%clk 0:00:42.3]} 19... Rdc8 {[%clk 0:01:28]} 20. Bd4 {[%clk 0:00:38.5]} 20...
Rc6 {[%clk 0:01:06.4]} 21. Ng5 {[%clk 0:00:35.4]} 21... h6 {[%clk 0:00:45.2]}
22. Ne6 {[%clk 0:00:27.8]} 22... Bh8 {[%clk 0:00:45.5]} 23. c3 {[%clk
0:00:23.4]} 23... Kf7 {[%clk 0:00:44.3]} 24. h3 {[%clk 0:00:18.5]} 24... b5
{[%clk 0:00:40.2]} 25. Bxf6 {[%clk 0:00:18]} 25... Bxf6 {[%clk 0:00:38.8]} 26.
Nd4 {[%clk 0:00:18.6]} 26... Rb6 {[%clk 0:00:38.1]} 27. Rde3 {[%clk 0:00:17.8]}
27... b4 {[%clk 0:00:36.6]} 28. Kc2 {[%clk 0:00:15.2]} 28... Rc8 {[%clk
0:00:36.4]} 29. Rd3 {[%clk 0:00:14.6]} 29... bxc3 {[%clk 0:00:33.9]} 30. bxc3
{[%clk 0:00:14.3]} 30... Ra6 {[%clk 0:00:31.2]} 31. Kb2 {[%clk 0:00:13.7]} 31...
Rb8+ {[%clk 0:00:27.9]} 32. Nb3 {[%clk 0:00:13.9]} 32... Ra4 {[%clk 0:00:25.3]}
33. g3 {[%clk 0:00:13.4]} 33... h5 {[%clk 0:00:25.7]} 34. h4 {[%clk 0:00:13.7]}
34... a5 {[%clk 0:00:25.7]} 35. Rd5 {[%clk 0:00:13.1]} 35... Rc4 {[%clk
0:00:24.1]} 36. Re3 {[%clk 0:00:04.7]} 36... a4 {[%clk 0:00:24]} 0-1

[Event "Late-Titled-Tuesday-Blitz-April-16-2024"]
[Site "Chess.com"]
[Date "2024.04.16"]
[Round "1"]
[White "HipsterChess22"]
[Black "Denmark2015"]
[Result "0-1"]
[WhiteElo "2249"]
[BlackElo "2588"]
[TimeControl "180+1"]
[EndTime "14:07:11 PDT"]
[Termination "Denmark2015 won on time"]

1. d4 {[%clk 0:03:00]} 1... e6 {[%clk 0:02:59.3]} 2. Nc3 {[%clk 0:02:58.3]} 2...
d5 {[%clk 0:02:58.6]} 3. e4 {[%clk 0:02:56.9]} 3... Be7 {[%clk 0:02:58.3]} 4.
exd5 {[%clk 0:02:53.6]} 4... exd5 {[%clk 0:02:58.4]} 5. Bf4 {[%clk 0:02:48.1]}
5... Nf6 {[%clk 0:02:54.1]} 6. Qd2 {[%clk 0:02:45.3]} 6... O-O {[%clk
0:02:47.7]} 7. O-O-O {[%clk 0:02:45]} 7... Bb4 {[%clk 0:02:47.2]} 8. Bg5 {[%clk
0:02:39]} 8... c6 {[%clk 0:02:39.8]} 9. Bd3 {[%clk 0:02:35.9]} 9... Nbd7 {[%clk
0:02:34.6]} 10. Nge2 {[%clk 0:02:32.6]} 10... Re8 {[%clk 0:02:32.3]} 11. Qf4
{[%clk 0:02:26.9]} 11... Be7 {[%clk 0:02:03.8]} 12. h4 {[%clk 0:02:10.6]} 12...
Nf8 {[%clk 0:02:02.5]} 13. h5 {[%clk 0:02:06.5]} 13... h6 {[%clk 0:02:00.9]} 14.
Bxh6 {[%clk 0:01:56.5]} 14... gxh6 {[%clk 0:01:52.9]} 15. Qxh6 {[%clk
0:01:57.4]} 15... N6h7 {[%clk 0:01:51.6]} 16. f4 {[%clk 0:01:36.3]} 16... Qd6
{[%clk 0:01:46.5]} 17. Qxd6 {[%clk 0:01:28.6]} 17... Bxd6 {[%clk 0:01:47.4]} 18.
g3 {[%clk 0:01:05.4]} 18... Bg4 {[%clk 0:01:46.6]} 19. Rdf1 {[%clk 0:00:56.9]}
19... b5 {[%clk 0:01:42]} 20. Ng1 {[%clk 0:00:51.2]} 20... b4 {[%clk 0:01:39]}
21. Nd1 {[%clk 0:00:47.6]} 21... c5 {[%clk 0:01:34.5]} 22. dxc5 {[%clk
0:00:43.4]} 22... Bxc5 {[%clk 0:01:34.1]} 23. Nf3 {[%clk 0:00:42.5]} 23... f6
{[%clk 0:01:21.4]} 24. Nh4 {[%clk 0:00:37.3]} 24... Ne6 {[%clk 0:01:02.3]} 25.
Nf5 {[%clk 0:00:34.5]} 25... Bf8 {[%clk 0:00:48.1]} 26. Rh4 {[%clk 0:00:28.6]}
26... Bxd1 {[%clk 0:00:44.2]} 27. Rxd1 {[%clk 0:00:21]} 27... Nc5 {[%clk
0:00:38.7]} 28. Bb5 {[%clk 0:00:18.9]} 28... Red8 {[%clk 0:00:37]} 29. Bc6
{[%clk 0:00:17.8]} 29... Rac8 {[%clk 0:00:32.6]} 30. Bxd5+ {[%clk 0:00:17.5]}
30... Kh8 {[%clk 0:00:32.5]} 31. Rhh1 {[%clk 0:00:12.7]} 31... Rc7 {[%clk
0:00:28.8]} 32. Bc4 {[%clk 0:00:07.1]} 32... Re8 {[%clk 0:00:21.6]} 33. Rde1
{[%clk 0:00:06]} 33... Rcc8 {[%clk 0:00:20.5]} 34. Nd4 {[%clk 0:00:04.3]} 34...
Ne4 {[%clk 0:00:19.2]} 35. Bd3 {[%clk 0:00:03.3]} 35... Nf2 {[%clk 0:00:17.7]}
0-1

[Event "Late-Titled-Tuesday-Blitz-April-16-2024"]
[Site "Chess.com"]
[Date "2024.04.16"]
[Round "1"]
[White "RuperezA"]
[Black "rhwr"]
[Result "1-0"]
[WhiteElo "2587"]
[BlackElo "2249"]
[TimeControl "180+1"]
[EndTime "14:07:12 PDT"]
[Termination "RuperezA won by resignation"]

1. e4 {[%clk 0:02:58.4]} 1... c5 {[%clk 0:03:00.5]} 2. Nf3 {[%clk 0:02:48.8]}
2... d6 {[%clk 0:03:00.6]} 3. Bb5+ {[%clk 0:02:48.1]} 3... Nd7 {[%clk
0:02:59.9]} 4. O-O {[%clk 0:02:47.1]} 4... a6 {[%clk 0:03:00]} 5. Bxd7+ {[%clk
0:02:46.9]} 5... Bxd7 {[%clk 0:02:59.9]} 6. d4 {[%clk 0:02:47.6]} 6... cxd4
{[%clk 0:02:59.2]} 7. Qxd4 {[%clk 0:02:48.5]} 7... e5 {[%clk 0:02:56.2]} 8. Qd3
{[%clk 0:02:29.2]} 8... Rc8 {[%clk 0:02:52.2]} 9. Nc3 {[%clk 0:02:19.7]} 9...
Nf6 {[%clk 0:02:50.9]} 10. Bg5 {[%clk 0:02:11.1]} 10... Be7 {[%clk 0:02:45.5]}
11. Bxf6 {[%clk 0:02:10.4]} 11... gxf6 {[%clk 0:02:43]} 12. Rfd1 {[%clk
0:02:03.8]} 12... Be6 {[%clk 0:02:41.1]} 13. Nh4 {[%clk 0:02:00.3]} 13... Rg8
{[%clk 0:02:24.7]} 14. Nf5 {[%clk 0:01:55.2]} 14... Bxf5 {[%clk 0:02:23.7]} 15.
exf5 {[%clk 0:01:56.1]} 15... Rc6 {[%clk 0:02:15.4]} 16. Nd5 {[%clk 0:01:52.5]}
16... Qa5 {[%clk 0:02:06.8]} 17. c3 {[%clk 0:01:45.3]} 17... Qa4 {[%clk
0:01:52.2]} 18. Qh3 {[%clk 0:01:14.1]} 18... Qg4 {[%clk 0:01:43]} 19. Qxg4
{[%clk 0:01:13.8]} 19... Rxg4 {[%clk 0:01:41.8]} 20. g3 {[%clk 0:01:11.5]} 20...
Rg5 {[%clk 0:01:33.8]} 21. Ne3 {[%clk 0:01:10]} 21... h5 {[%clk 0:01:32.4]} 22.
h4 {[%clk 0:01:09.9]} 22... Rg8 {[%clk 0:01:30.3]} 23. Kg2 {[%clk 0:01:10.1]}
23... Bd8 {[%clk 0:01:22.6]} 24. Nd5 {[%clk 0:01:09.5]} 24... Rc4 {[%clk
0:01:18.9]} 25. Kf3 {[%clk 0:01:08.3]} 25... b5 {[%clk 0:01:11.2]} 26. Ne3
{[%clk 0:01:06.7]} 26... Rc6 {[%clk 0:01:08.5]} 27. a4 {[%clk 0:01:06.8]} 27...
Rb6 {[%clk 0:01:04.8]} 28. axb5 {[%clk 0:01:04.1]} 28... axb5 {[%clk 0:01:03.9]}
29. Ra8 {[%clk 0:01:03.8]} 29... Kd7 {[%clk 0:00:52.1]} 30. Rda1 {[%clk
0:00:59.2]} 30... Rb7 {[%clk 0:00:43.1]} 31. R1a6 {[%clk 0:00:54.6]} 31... Rf8
{[%clk 0:00:38.2]} 32. Nd5 {[%clk 0:00:51.7]} 32... Be7 {[%clk 0:00:35.6]} 33.
Rxf8 {[%clk 0:00:50.8]} 33... Bxf8 {[%clk 0:00:35.1]} 34. Nxf6+ {[%clk
0:00:51.4]} 34... Kc7 {[%clk 0:00:31.4]} 35. Nd5+ {[%clk 0:00:49.9]} 35... Kd7
{[%clk 0:00:30.2]} 36. Ke4 {[%clk 0:00:45.2]} 36... Bh6 {[%clk 0:00:26.8]} 37.
f3 {[%clk 0:00:45.3]} 37... Bc1 {[%clk 0:00:25.4]} 38. b4 {[%clk 0:00:45.6]}
38... Bd2 {[%clk 0:00:23.1]} 39. g4 {[%clk 0:00:45.7]} 39... hxg4 {[%clk
0:00:22.1]} 40. fxg4 {[%clk 0:00:46.6]} 40... Be1 {[%clk 0:00:22]} 41. h5 {[%clk
0:00:41.5]} 41... Bd2 {[%clk 0:00:21.6]} 42. Ra8 {[%clk 0:00:41.4]} 42... Bh6
{[%clk 0:00:18.8]} 43. Rh8 {[%clk 0:00:39.8]} 43... Bg5 {[%clk 0:00:18.5]} 44.
h6 {[%clk 0:00:39.7]} 44... Ra7 {[%clk 0:00:17.7]} 45. h7 {[%clk 0:00:39.5]}
45... Ra1 {[%clk 0:00:15.7]} 46. Rg8 {[%clk 0:00:38.1]} 46... Re1+ {[%clk
0:00:13.3]} 47. Kf3 {[%clk 0:00:37.8]} 47... Rh1 {[%clk 0:00:12.7]} 48. Rxg5
{[%clk 0:00:37.4]} 48... Rxh7 {[%clk 0:00:12.1]} 49. Nf6+ {[%clk 0:00:37.1]} 1-0

[Event "Late-Titled-Tuesday-Blitz-April-16-2024"]
[Site "Chess.com"]
[Date "2024.04.16"]
[Round "1"]
[White "simaopdias"]
[Black "Mikhail_Golubev"]
[Result "0-1"]
[WhiteElo "2264"]
[BlackElo "2592"]
[TimeControl "180+1"]
[EndTime "14:07:15 PDT"]
[Termination "Mikhail_Golubev won by checkmate"]

1. e4 {[%clk 0:02:59.1]} 1... c5 {[%clk 0:02:57.2]} 2. Nf3 {[%clk 0:02:59.2]}
2... d6 {[%clk 0:02:57.3]} 3. d4 {[%clk 0:02:59.8]} 3... Nf6 {[%clk 0:02:57.5]}
4. Nc3 {[%clk 0:02:59.8]} 4... cxd4 {[%clk 0:02:57.9]} 5. Nxd4 {[%clk
0:02:59.8]} 5... g6 {[%clk 0:02:58.6]} 6. Be2 {[%clk 0:02:58.5]} 6... Bg7 {[%clk
0:02:58.4]} 7. O-O {[%clk 0:02:59]} 7... O-O {[%clk 0:02:58.3]} 8. f4 {[%clk
0:02:43.6]} 8... Nc6 {[%clk 0:02:57.2]} 9. Be3 {[%clk 0:02:41.6]} 9... Qb6
{[%clk 0:02:55.9]} 10. Qd2 {[%clk 0:02:33.5]} 10... Nxe4 {[%clk 0:02:37.4]} 11.
Nxc6 {[%clk 0:02:33.4]} 11... Qxc6 {[%clk 0:01:30.6]} 12. Nxe4 {[%clk
0:02:31.1]} 12... Qxe4 {[%clk 0:01:30.6]} 13. Bf3 {[%clk 0:02:27.9]} 13... Qc4
{[%clk 0:01:27.5]} 14. c3 {[%clk 0:02:12.7]} 14... Qc7 {[%clk 0:01:21.3]} 15.
Rfe1 {[%clk 0:02:11.3]} 15... Be6 {[%clk 0:01:19.9]} 16. Bd5 {[%clk 0:02:01.3]}
16... Bxd5 {[%clk 0:01:17.4]} 17. Qxd5 {[%clk 0:02:02.2]} 17... e6 {[%clk
0:01:17.9]} 18. Qd3 {[%clk 0:02:01.5]} 18... d5 {[%clk 0:01:17.9]} 19. Rad1
{[%clk 0:02:00.9]} 19... a6 {[%clk 0:01:13.2]} 20. Rf1 {[%clk 0:01:58.1]} 20...
Rac8 {[%clk 0:01:11.8]} 21. Bd4 {[%clk 0:01:57.7]} 21... Qc4 {[%clk 0:01:04.1]}
22. Bxg7 {[%clk 0:01:55.8]} 22... Qxd3 {[%clk 0:01:02.6]} 23. Rxd3 {[%clk
0:01:55.5]} 23... Kxg7 {[%clk 0:01:03]} 24. Kf2 {[%clk 0:01:49.5]} 24... Rc4
{[%clk 0:01:01.8]} 25. Kf3 {[%clk 0:01:50]} 25... b5 {[%clk 0:00:58.5]} 26. a3
{[%clk 0:01:49.5]} 26... a5 {[%clk 0:00:57.6]} 27. Rfd1 {[%clk 0:01:44.8]} 27...
b4 {[%clk 0:00:56.3]} 28. axb4 {[%clk 0:01:44.7]} 28... axb4 {[%clk 0:00:56.8]}
29. cxb4 {[%clk 0:01:44]} 29... Rxb4 {[%clk 0:00:57]} 30. b3 {[%clk 0:01:41.1]}
30... Rfb8 {[%clk 0:00:56]} 31. Rb1 {[%clk 0:01:41.6]} 31... Kf6 {[%clk
0:00:51.9]} 32. Rc3 {[%clk 0:01:39.8]} 32... R8b7 {[%clk 0:00:49.3]} 33. Re3
{[%clk 0:01:38.8]} 33... Ke7 {[%clk 0:00:44.1]} 34. g4 {[%clk 0:01:36.6]} 34...
Kd6 {[%clk 0:00:44.1]} 35. Rd3 {[%clk 0:01:34.9]} 35... f6 {[%clk 0:00:42.4]}
36. Rc3 {[%clk 0:01:34.7]} 36... d4 {[%clk 0:00:28.2]} 37. Rd3 {[%clk
0:01:34.6]} 37... Kd5 {[%clk 0:00:24.6]} 38. Ke2 {[%clk 0:01:23.4]} 38... e5
{[%clk 0:00:23.8]} 39. fxe5 {[%clk 0:01:22.6]} 39... fxe5 {[%clk 0:00:24.7]} 40.
Kd2 {[%clk 0:01:22.3]} 40... e4 {[%clk 0:00:23.9]} 41. Rh3 {[%clk 0:01:22.8]}
41... e3+ {[%clk 0:00:20.5]} 42. Kc2 {[%clk 0:01:22.9]} 42... Rc7+ {[%clk
0:00:17.3]} 43. Kb2 {[%clk 0:01:19.3]} 43... Re7 {[%clk 0:00:08.4]} 44. g5
{[%clk 0:01:15.5]} 44... d3 {[%clk 0:00:05.9]} 45. Rd1 {[%clk 0:01:13.9]} 45...
d2 {[%clk 0:00:04.6]} 46. Kc3 {[%clk 0:01:10.8]} 46... Rd4 {[%clk 0:00:04.7]}
47. Kc2 {[%clk 0:01:03.1]} 47... e2 {[%clk 0:00:04.1]} 48. Rxd2 {[%clk
0:00:58.3]} 48... Rxd2+ {[%clk 0:00:04.4]} 49. Kxd2 {[%clk 0:00:58.3]} 49...
e1=Q+ {[%clk 0:00:05]} 50. Kc2 {[%clk 0:00:59.2]} 50... Qe2+ {[%clk 0:00:04.9]}
51. Kb1 {[%clk 0:00:58.4]} 51... Qd1+ {[%clk 0:00:05]} 52. Kb2 {[%clk
0:00:58.5]} 52... Qd2+ {[%clk 0:00:05.4]} 53. Kb1 {[%clk 0:00:58.5]} 53... Re1#
{[%clk 0:00:04.7]} 0-1

[Event "Late-Titled-Tuesday-Blitz-April-16-2024"]
[Site "Chess.com"]
[Date "2024.04.16"]
[Round "1"]
[White "FabianoCaruana"]
[Black "JackRodgers"]
[Result "1-0"]
[WhiteElo "3090"]
[BlackElo "2531"]
[TimeControl "180+1"]
[EndTime "14:07:19 PDT"]
[Termination "FabianoCaruana won by checkmate"]

1. b4 {[%clk 0:03:00.9]} 1... Nf6 {[%clk 0:02:56.6]} 2. Bb2 {[%clk 0:03:00.4]}
2... e6 {[%clk 0:02:56.7]} 3. a3 {[%clk 0:03:00.4]} 3... d5 {[%clk 0:02:53.7]}
4. e3 {[%clk 0:02:59.4]} 4... g6 {[%clk 0:02:45.7]} 5. Nf3 {[%clk 0:02:57.3]}
5... Bg7 {[%clk 0:02:45.9]} 6. c4 {[%clk 0:02:57.5]} 6... c6 {[%clk 0:02:43]} 7.
Be2 {[%clk 0:02:55.4]} 7... a5 {[%clk 0:02:39.8]} 8. b5 {[%clk 0:02:54.7]} 8...
O-O {[%clk 0:02:37.7]} 9. Kf1 {[%clk 0:02:54.4]} 9... dxc4 {[%clk 0:02:34.4]}
10. Bxc4 {[%clk 0:02:49.4]} 10... cxb5 {[%clk 0:02:34.9]} 11. Bxb5 {[%clk
0:02:47.7]} 11... Bd7 {[%clk 0:02:35.3]} 12. Qe2 {[%clk 0:02:42.7]} 12... Bxb5
{[%clk 0:02:30.3]} 13. Qxb5 {[%clk 0:02:43.6]} 13... Qd7 {[%clk 0:02:30.7]} 14.
a4 {[%clk 0:02:37.9]} 14... Qxb5+ {[%clk 0:02:18.3]} 15. axb5 {[%clk 0:02:38.8]}
15... Nd5 {[%clk 0:02:16]} 16. Bxg7 {[%clk 0:02:37.4]} 16... Kxg7 {[%clk
0:02:16.8]} 17. Ke2 {[%clk 0:02:37.5]} 17... Nd7 {[%clk 0:02:05.9]} 18. Rc1
{[%clk 0:02:36.3]} 18... b6 {[%clk 0:01:51.9]} 19. Nc3 {[%clk 0:02:34.1]} 19...
Nxc3+ {[%clk 0:01:47]} 20. Rxc3 {[%clk 0:02:35]} 20... Rfc8 {[%clk 0:01:47.3]}
21. Rac1 {[%clk 0:02:28.5]} 21... Rxc3 {[%clk 0:01:46.2]} 22. Rxc3 {[%clk
0:02:29.4]} 22... Kf6 {[%clk 0:01:38.7]} 23. d4 {[%clk 0:02:26.7]} 23... Ke7
{[%clk 0:01:31.9]} 24. Nd2 {[%clk 0:02:23.7]} 24... Kd8 {[%clk 0:01:18.7]} 25.
Ne4 {[%clk 0:02:21.9]} 25... Ke7 {[%clk 0:01:14.1]} 26. Kd3 {[%clk 0:02:19.6]}
26... f5 {[%clk 0:01:09.6]} 27. Nd2 {[%clk 0:02:17.1]} 27... Kd8 {[%clk
0:01:03.6]} 28. Nc4 {[%clk 0:02:01.3]} 28... Rc8 {[%clk 0:00:51.6]} 29. h4
{[%clk 0:02:00.4]} 29... h6 {[%clk 0:00:43.6]} 30. Ra3 {[%clk 0:01:58.6]} 30...
Ke7 {[%clk 0:00:36.9]} 31. Ra1 {[%clk 0:01:57.5]} 31... Rg8 {[%clk 0:00:25.6]}
32. f3 {[%clk 0:01:55]} 32... Rc8 {[%clk 0:00:24.1]} 33. Rg1 {[%clk 0:01:51.9]}
33... h5 {[%clk 0:00:22.6]} 34. Re1 {[%clk 0:01:40.8]} 34... Rf8 {[%clk
0:00:21]} 35. Re2 {[%clk 0:01:34.5]} 35... Ra8 {[%clk 0:00:14.9]} 36. e4 {[%clk
0:01:22.3]} 36... Rd8 {[%clk 0:00:14.6]} 37. e5 {[%clk 0:01:07.4]} 37... Nc5+
{[%clk 0:00:12.1]} 38. Kc3 {[%clk 0:01:04.7]} 38... Nd7 {[%clk 0:00:12.7]} 39.
Nd6 {[%clk 0:01:02.6]} 39... Ra8 {[%clk 0:00:11.3]} 40. Kb3 {[%clk 0:01:01.5]}
40... Rg8 {[%clk 0:00:08.2]} 41. f4 {[%clk 0:00:59.2]} 41... Ra8 {[%clk
0:00:07.5]} 42. Rc2 {[%clk 0:00:59]} 42... Rb8 {[%clk 0:00:07]} 43. Rc7 {[%clk
0:00:55.8]} 43... Ra8 {[%clk 0:00:06.9]} 44. Rb7 {[%clk 0:00:48.9]} 44... Rb8
{[%clk 0:00:05.2]} 45. Ra7 {[%clk 0:00:48.2]} 45... Kd8 {[%clk 0:00:04.2]} 46.
Ka3 {[%clk 0:00:46.5]} 46... Ke7 {[%clk 0:00:04.8]} 47. Kb2 {[%clk 0:00:44.6]}
47... Kd8 {[%clk 0:00:05.4]} 48. d5 {[%clk 0:00:44.3]} 48... exd5 {[%clk
0:00:04.4]} 49. e6 {[%clk 0:00:43.3]} 49... Nf6 {[%clk 0:00:02.4]} 50. e7#
{[%clk 0:00:42.2]} 1-0

[Event "Late-Titled-Tuesday-Blitz-April-16-2024"]
[Site "Chess.com"]
[Date "2024.04.16"]
[Round "1"]
[White "Hrant_ChessMood"]
[Black "WindWhistler11"]
[Result "1-0"]
[WhiteElo "2974"]
[BlackElo "2505"]
[TimeControl "180+1"]
[EndTime "14:07:19 PDT"]
[Termination "Hrant_ChessMood won on time"]

1. Nf3 {[%clk 0:02:49]} 1... Nf6 {[%clk 0:02:59.7]} 2. c4 {[%clk 0:02:46.2]}
2... d6 {[%clk 0:02:57.1]} 3. d4 {[%clk 0:02:45.5]} 3... Bg4 {[%clk 0:02:55]} 4.
g3 {[%clk 0:02:38.5]} 4... c6 {[%clk 0:02:52.9]} 5. Bg2 {[%clk 0:02:38]} 5... e6
{[%clk 0:02:48.8]} 6. Nc3 {[%clk 0:02:37]} 6... Nbd7 {[%clk 0:02:37]} 7. O-O
{[%clk 0:02:36.2]} 7... Be7 {[%clk 0:02:36.2]} 8. Qb3 {[%clk 0:02:35.1]} 8...
Rb8 {[%clk 0:02:30.1]} 9. e4 {[%clk 0:02:33.9]} 9... Qc7 {[%clk 0:02:08.8]} 10.
Be3 {[%clk 0:02:22.2]} 10... O-O {[%clk 0:01:56.9]} 11. Rac1 {[%clk 0:02:20.6]}
11... Bh5 {[%clk 0:01:53.3]} 12. h3 {[%clk 0:02:18.1]} 12... Bg6 {[%clk
0:01:47.5]} 13. Nh4 {[%clk 0:02:09]} 13... Nh5 {[%clk 0:01:15.5]} 14. Nxg6
{[%clk 0:02:07.2]} 14... hxg6 {[%clk 0:01:14.6]} 15. a3 {[%clk 0:02:02.6]} 15...
a6 {[%clk 0:01:10.6]} 16. Qa2 {[%clk 0:01:53.9]} 16... e5 {[%clk 0:01:06.8]} 17.
b4 {[%clk 0:01:34.3]} 17... Qd8 {[%clk 0:00:53.4]} 18. Qd2 {[%clk 0:01:29.7]}
18... b5 {[%clk 0:00:44.3]} 19. d5 {[%clk 0:01:16.9]} 19... c5 {[%clk
0:00:33.7]} 20. cxb5 {[%clk 0:01:01.6]} 20... cxb4 {[%clk 0:00:29.9]} 21. axb4
{[%clk 0:00:59.6]} 21... axb5 {[%clk 0:00:28.9]} 22. Qd3 {[%clk 0:00:59.7]}
22... f5 {[%clk 0:00:20.9]} 23. Nxb5 {[%clk 0:00:38.9]} 23... f4 {[%clk
0:00:20.6]} 24. Ba7 {[%clk 0:00:37.9]} 24... Rxb5 {[%clk 0:00:17.6]} 25. Qxb5
{[%clk 0:00:35.3]} 25... fxg3 {[%clk 0:00:17]} 26. fxg3 {[%clk 0:00:34.6]} 26...
Nxg3 {[%clk 0:00:15.2]} 27. Rxf8+ {[%clk 0:00:33.9]} 27... Nxf8 {[%clk
0:00:14.4]} 28. Bf2 {[%clk 0:00:31.9]} 28... Nh5 {[%clk 0:00:12.4]} 29. Bf3
{[%clk 0:00:28.5]} 29... Bh4 {[%clk 0:00:12.1]} 30. Rf1 {[%clk 0:00:18.5]} 30...
Qg5+ {[%clk 0:00:11.9]} 31. Bg4 {[%clk 0:00:19]} 31... Nf6 {[%clk 0:00:11]} 32.
Qe2 {[%clk 0:00:18.7]} 32... Nh5 {[%clk 0:00:07.8]} 33. Bxh4 {[%clk 0:00:18.7]}
33... Qxh4 {[%clk 0:00:08.4]} 34. Qf2 {[%clk 0:00:19.3]} 34... Qxf2+ {[%clk
0:00:07.2]} 35. Rxf2 {[%clk 0:00:19.4]} 35... Nf4 {[%clk 0:00:07.9]} 36. b5
{[%clk 0:00:18.9]} 36... Nd3 {[%clk 0:00:05.4]} 37. b6 {[%clk 0:00:17.3]} 37...
Nc5 {[%clk 0:00:02.9]} 38. Rc2 {[%clk 0:00:17.5]} 1-0